{"text_format":"1","workbook":"xlsx","n_sheets":1,"sheets":["ESF_DET"],"not_rendered":{"charts":0,"images":0,"macros":0,"external_links":0,"defined_names":1,"comments":0,"pivot_tables":0},"unopened":[],"bounds":{"document_bytes":16777216,"sheet_cells":100000,"rows_first":2000,"rows_last":500,"rows_between":2000,"halvings":0,"cell_chars":16384,"cell_head_chars":4096},"cells_cut":0,"cells_raw":0,"read":"whole","date_system":"1900"}

{"sheet":"ESF_DET","index":0,"n_rows":93,"n_cols":8,"rows_kept":93,"cut":false,"hidden":false,"merged":[[1,1,1,6],[2,1,2,6],[3,1,3,6],[4,1,4,6]]}
[null,null,null,null,null,null,null,"ASEC_ESFD_2doTRIM_O2"]
[null,"Nombre del Ente Público a) JUNTA MUNICIPAL DE AGUAS Y SANEAMIENTO DE BUENAVENTURA "]
[null,"Estado de Situación Financiera Detallado - LDF"]
[null,"Al 31 de Diciembre de 2022 y al 31 de Diciembre de 2021 (b)"]
[null,"(PESOS)"]
[null,"Concepto (c)","2022 (d)","31 de diciembre de 2021 (e)","Concepto (c)","2022 (d)","31 de diciembre de 2021 (e)"]
[null,"ACTIVO",null,null,"PASIVO"]
[null,"Activo Circulante",null,null,"Pasivo Circulante"]
[null,"a. Efectivo y Equivalentes (a=a1+a2+a3+a4+a5+a6+a7)",{"$f":"SUM(C10:C16)","v":878302},{"$f":"SUM(D10:D16)","v":999857},"a. Cuentas por Pagar a Corto Plazo (a=a1+a2+a3+a4+a5+a6+a7+a8+a9)",{"$f":"SUM(F10:F18)","v":5456719},{"$f":"SUM(G10:G18)","v":5598891}]
[null,"a1) Efectivo",1477,1978,"a1) Servicios Personales por Pagar a Corto Plazo",0,0]
[null,"a2) Bancos/Tesorería",873676,994730,"a2) Proveedores por Pagar a Corto Plazo",0,0]
[null,"a3) Bancos/Dependencias y Otros",0,0,"a3) Contratistas por Obras Públicas por Pagar a Corto Plazo",0,0]
[null,"a4) Inversiones Temporales (Hasta 3 meses)",3149,3149,"a4) Participaciones y Aportaciones por Pagar a Corto Plazo",0,0]
[null,"a5) Fondos con Afectación Específica",0,0,"a5) Transferencias Otorgadas por Pagar a Corto Plazo",0,0]
[null,"a6) Depósitos de Fondos de Terceros en Garantía y/o Administración",0,0,"a6) Intereses, Comisiones y Otros Gastos de la Deuda Pública por Pagar a Corto Plazo",0,0]
[null,"a7) Otros Efectivos y Equivalentes",0,0,"a7) Retenciones y Contribuciones por Pagar a Corto Plazo",0,0]
[null,"b. Derechos a Recibir Efectivo o Equivalentes (b=b1+b2+b3+b4+b5+b6+b7)",{"$f":"SUM(C18:C24)","v":261483},{"$f":"SUM(D18:D24)","v":190450},"a8) Devoluciones de la Ley de Ingresos por Pagar a Corto Plazo",0,0]
[null,"b1) Inversiones Financieras de Corto Plazo",0,0,"a9) Otras Cuentas por Pagar a Corto Plazo",5456719,5598891]
[null,"b2) Cuentas por Cobrar a Corto Plazo",0,0,"b. Documentos por Pagar a Corto Plazo (b=b1+b2+b3)",{"$f":"SUM(F20:F22)","v":0},{"$f":"SUM(G20:G22)","v":0}]
[null,"b3) Deudores Diversos por Cobrar a Corto Plazo",261483,190450,"b1) Documentos Comerciales por Pagar a Corto Plazo",0,0]
[null,"b4) Ingresos por Recuperar a Corto Plazo",0,0,"b2) Documentos con Contratistas por Obras Públicas por Pagar a Corto Plazo",0,0]
[null,"b5) Deudores por Anticipos de la Tesorería a Corto Plazo",0,0,"b3) Otros Documentos por Pagar a Corto Plazo",0,0]
[null,"b6) Préstamos Otorgados a Corto Plazo",0,0,"c. Porción a Corto Plazo de la Deuda Pública a Largo Plazo (c=c1+c2)",{"$f":"SUM(F24:F25)","v":0},{"$f":"SUM(G24:G25)","v":0}]
[null,"b7) Otros Derechos a Recibir Efectivo o Equivalentes a Corto Plazo",0,0,"c1) Porción a Corto Plazo de la Deuda Pública",0,0]
[null,"c. Derechos a Recibir Bienes o Servicios (c=c1+c2+c3+c4+c5)",{"$f":"SUM(C26:C30)","v":4234866},{"$f":"SUM(D26:D30)","v":3858283},"c2) Porción a Corto Plazo de Arrendamiento Financiero",0,0]
[null,"c1) Anticipo a Proveedores por Adquisición de Bienes y Prestación de Servicios a Corto Plazo",0,0,"d. Títulos y Valores a Corto Plazo",0,0]
[null,"c2) Anticipo a Proveedores por Adquisición de Bienes Inmuebles y Muebles a Corto Plazo",0,0,"e. Pasivos Diferidos a Corto Plazo (e=e1+e2+e3)",{"$f":"SUM(F28:F30)","v":0},{"$f":"SUM(G28:G30)","v":0}]
[null,"c3) Anticipo a Proveedores por Adquisición de Bienes Intangibles a Corto Plazo",0,0,"e1) Ingresos Cobrados por Adelantado a Corto Plazo",0,0]
[null,"c4) Anticipo a Contratistas por Obras Públicas a Corto Plazo",0,0,"e2) Intereses Cobrados por Adelantado a Corto Plazo",0,0]
[null,"c5) Otros Derechos a Recibir Bienes o Servicios a Corto Plazo",4234866,3858283,"e3) Otros Pasivos Diferidos a Corto Plazo",0,0]
[null,"d. Inventarios (d=d1+d2+d3+d4+d5)",{"$f":"SUM(C32:C36)","v":0},{"$f":"SUM(D32:D36)","v":0},"f. Fondos y Bienes de Terceros en Garantía y/o Administración a Corto Plazo (f=f1+f2+f3+f4+f5+f6)",{"$f":"SUM(F32:F37)","v":0},{"$f":"SUM(G32:G37)","v":0}]
[null,"d1) Inventario de Mercancías para Venta",0,0,"f1) Fondos en Garantía a Corto Plazo",0,0]
[null,"d2) Inventario de Mercancías Terminadas",0,0,"f2) Fondos en Administración a Corto Plazo",0,0]
[null,"d3) Inventario de Mercancías en Proceso de Elaboración",0,0,"f3) Fondos Contingentes a Corto Plazo",0,0]
[null,"d4) Inventario de Materias Primas, Materiales y Suministros para Producción",0,0,"f4) Fondos de Fideicomisos, Mandatos y Contratos Análogos a Corto Plazo",0,0]
[null,"d5) Bienes en Tránsito",0,0,"f5) Otros Fondos de Terceros en Garantía y/o Administración a Corto Plazo",0,0]
[null,"e. Almacenes",0,0,"f6) Valores y Bienes en Garantía a Corto Plazo",0,0]
[null,"f. Estimación por Pérdida o Deterioro de Activos Circulantes (f=f1+f2)",{"$f":"SUM(C39:C40)","v":0},{"$f":"SUM(D39:D40)","v":0},"g. Provisiones a Corto Plazo (g=g1+g2+g3)",{"$f":"SUM(F39:F41)","v":0},{"$f":"SUM(G39:G41)","v":0}]
[null,"f1) Estimaciones para Cuentas Incobrables por Derechos a Recibir Efectivo o Equivalentes",0,0,"g1) Provisión para Demandas y Juicios a Corto Plazo",0,0]
[null,"f2) Estimación por Deterioro de Inventarios",0,0,"g2) Provisión para Contingencias a Corto Plazo",0,0]
[null,"g. Otros Activos Circulantes (g=g1+g2+g3+g4)",{"$f":"SUM(C42:C45)","v":0},{"$f":"SUM(D42:D45)","v":0},"g3) Otras Provisiones a Corto Plazo",0,0]
[null,"g1) Valores en Garantía",0,0,"h. Otros Pasivos a Corto Plazo (h=h1+h2+h3)",{"$f":"SUM(F43:F45)","v":0},{"$f":"SUM(G43:G45)","v":0}]
[null,"g2) Bienes en Garantía (excluye depósitos de fondos)",0,0,"h1) Ingresos por Clasificar",0,0]
[null,"g3) Bienes Derivados de Embargos, Decomisos, Aseguramientos y Dación en Pago",0,0,"h2) Recaudación por Participar",0,0]
[null,"g4) Adquisición con Fondos de Terceros",0,0,"h3) Otros Pasivos Circulantes",0,0]
[]
[null,"IA. Total de Activos Circulantes (IA = a + b + c + d + e + f + g)",{"$f":"SUM(C41,C38,C37,C31,C25,C17,C9)","v":5374651},{"$f":"SUM(D41,D38,D37,D31,D25,D17,D9)","v":5048590},"IIA. Total de Pasivos Circulantes (IIA = a + b + c + d + e + f + g + h)",{"$f":"SUM(F42,F38,F31,F27,F26,F23,F19,F9)","v":5456719},{"$f":"SUM(G42,G38,G31,G27,G26,G23,G19,G9)","v":5598891}]
[]
[null,"Activo No Circulante",null,null,"Pasivo No Circulante"]
[null,"a. Inversiones Financieras a Largo Plazo",0,0,"a. Cuentas por Pagar a Largo Plazo",0,0]
[null,"b. Derechos a Recibir Efectivo o Equivalentes a Largo Plazo ",0,0,"b. Documentos por Pagar a Largo Plazo",0,0]
[null,"c. Bienes Inmuebles, Infraestructura y Construcciones en Proceso ",54761179,54350802,"c. Deuda Pública a Largo Plazo",0,0]
[null,"d. Bienes Muebles ",1480747,1456230,"d. Pasivos Diferidos a Largo Plazo",0,0]
[null,"e. Activos Intangibles ",304696,134838,"e. Fondos y Bienes de Terceros en Garantía y/o en Administración a Largo Plazo",0,0]
[null,"f. Depreciación, Deterioro y Amortización Acumulada de Bienes ",0,0,"f. Provisiones a Largo Plazo",0,0]
[null,"g. Activos Diferidos",0,0]
[null,"h. Estimación por Pérdida o Deterioro de Activos no Circulantes",0,0,"IIB. Total de Pasivos No Circulantes (IIB = a + b + c + d + e + f)",{"$f":"SUM(F50:F55)","v":0},{"$f":"SUM(G50:G55)","v":0}]
[null,"i. Otros Activos no Circulantes",0,0]
[null,null,null,null,"II. Total del Pasivo (II = IIA + IIB)",{"$f":"SUM(F47,F57)","v":5456719},{"$f":"SUM(G47,G57)","v":5598891}]
[null,"IB. Total de Activos No Circulantes (IB = a + b + c + d + e + f + g + h + i)",{"$f":"SUM(C50:C58)","v":56546622},{"$f":"SUM(D50:D58)","v":55941870}]
[null,null,null,null,"HACIENDA PÚBLICA/PATRIMONIO"]
[null,"I. Total del Activo (I = IA + IB)",{"$f":"SUM(C47,C60)","v":61921273},{"$f":"SUM(D47,D60)","v":60990460}]
[null,null,null,null,"IIIA. Hacienda Pública/Patrimonio Contribuido (IIIA = a + b + c)",{"$f":"SUM(F64:F66)","v":62345521},{"$f":"SUM(G64:G66)","v":62345521}]
[null,null,null,null,"a. Aportaciones",62345521,62345521]
[null,null,null,null,"b. Donaciones de Capital",0,0]
[null,null,null,null,"c. Actualización de la Hacienda Pública/Patrimonio",0,0]
[]
[null,null,null,null,"IIIB. Hacienda Pública/Patrimonio Generado (IIIB = a + b + c + d + e)",{"$f":"SUM(F69:F73)","v":-5880967},{"$f":"SUM(G69:G73)","v":-6953952}]
[null,null,null,null,"a. Resultados del Ejercicio (Ahorro/ Desahorro)",1072984,528494]
[null,null,null,null,"b. Resultados de Ejercicios Anteriores",-7337518,-7866013]
[null,null,null,null,"c. Revalúos",383567,383567]
[null,null,null,null,"d. Reservas",0,0]
[null,null,null,null,"e. Rectificaciones de Resultados de Ejercicios Anteriores",0,0]
[]
[null,null,null,null,"IIIC. Exceso o Insuficiencia en la Actualización de la Hacienda Pública/Patrimonio (IIIC=a+b)",{"$f":"SUM(F76:F77)","v":0},{"$f":"SUM(G76:G77)","v":0}]
[null,null,null,null,"a. Resultado por Posición Monetaria",0,0]
[null,null,null,null,"b. Resultado por Tenencia de Activos no Monetarios",0,0]
[]
[null,null,null,null,"III. Total Hacienda Pública/Patrimonio (III = IIIA + IIIB + IIIC)",{"$f":"SUM(F63,F68,F75)","v":56464554},{"$f":"SUM(G63,G68,G75)","v":55391569}]
[]
[null,null,null,null,"IV. Total del Pasivo y Hacienda Pública/Patrimonio (IV = II + III)",{"$f":"SUM(F59,F79)","v":61921273},{"$f":"SUM(G59,G79)","v":60990460}]
[]
[]
[]
[]
[]
[]
[]
[null,"C.HILDA VEGA BASOCO ",null,null,"ING.DORA MINEE ARREOLA DOZAL "]
[null,"DIRECTORA FINANCIERA",null,null,"DIRECTORA EJECUTIVA"]
[]
[]
[null,"“Declaro salvo decir verdad que la información contenida en el presente documento es de mi responsabilidad y que todos los saldos aquí reflejados, fueron analizados en su totalidad”"]